bitfinex/quotes_ETHUSD_20220227
["timestamp","ask_amount","ask_price","bid_price","bid_amount"]
[1645985342174,0.02321781,2749.6,2749.0,1.0]
[1645985342372,0.66705915,2749.7,2748.9,0.438]
[1645985342570,2.14852163,2749.9,2748.9,0.438]
[1645985342571,0.66705915,2749.6,2748.9,0.438]
[1645985342972,0.66705915,2749.6,2748.9,11.448]
[1645985343172,0.91236813,2749.8,2748.9,11.448]
[1645985343173,0.12244181,2749.8,2748.9,11.448]
[1645985343372,1.2305,2750.1,2748.9,11.448]
[1645985343574,1.33372149,2750.2,2748.9,12.448]
[1645985343774,0.1093,2750.1,2748.9,1.438]
[1645985344171,1.33372149,2750.1,2748.9,0.438]
[1645985344372,1.33372149,2750.1,2748.8,0.3]
[1645985344576,1.26142552,2750.0,2748.7,1.64806]
[1645985344778,0.1093,2749.9,2748.5,2.8315]
[1645985345033,1.69442149,2749.6,2749.4,0.00580644]
[1645985345229,1.69442149,2749.6,2749.4,0.00185018]
[1645985345230,0.1093,2749.5,2749.4,0.00185018]
[1645985345429,0.28938108,2749.5,2749.4,0.00185018]
[1645985345628,3.07847516,2749.5,2749.4,0.00185018]
[1645985345828,3.07847516,2749.5,2748.3,3.75]
[1645985346029,0.3607,2749.3,2748.3,0.25]
[1645985346227,0.3607,2749.3,2748.0,14.03792317]
[1645985346228,0.1093,2749.2,2748.0,14.03792317]
[1645985346830,1.22800409,2748.5,2748.0,14.03792317]
[1645985347234,1.22800409,2748.5,2747.9,0.13819997]
[1645985347434,1.22800409,2748.5,2747.7,12.17038]
[1645985347435,1.58870409,2748.5,2747.7,0.25]
[1645985347669,1.58870409,2748.5,2747.0,0.1454]
[1645985347830,0.1093,2748.4,2746.9,0.25]
[1645985348230,1.09784287,2747.7,2746.9,0.1454]
[1645985348430,0.1093,2748.4,2746.9,0.1454]
[1645985348668,0.1093,2748.5,2747.5,0.00179866]
[1645985349469,0.1093,2748.5,2746.9,0.3954]
[1645985349470,1.17137321,2747.9,2746.9,0.3954]
[1645985349673,1.17137321,2747.9,2747.5,0.02323316]
[1645985350272,1.13036271,2747.9,2747.5,0.02323316]
[1645985350674,1.13036271,2747.9,2746.9,0.3954]
[1645985351074,1.49106271,2747.9,2747.6,0.00580762]
[1645985351272,1.49106271,2747.9,2747.6,0.0027897]
[1645985352273,1.49106271,2747.9,2746.9,0.3954]
[1645985353322,1.49106271,2747.9,2747.3,0.00160209]
[1645985353720,2.16085447,2747.9,2747.3,0.00160209]
[1645985353920,0.66979176,2747.8,2747.3,0.00160209]
[1645985354121,0.34274148,2747.9,2747.3,0.00160209]
[1645985354420,0.1093,2748.1,2746.9,0.3954]
[1645985354721,0.47,2748.2,2747.4,0.00533247]
[1645985354923,1.25650431,2747.6,2747.4,0.00533247]
[1645985355322,0.47,2748.2,2747.4,0.00533247]
[1645985355523,0.47,2748.2,2746.9,0.3954]
[1645985355723,0.47,2748.2,2747.4,0.00533257]
[1645985355924,0.1093,2748.2,2747.4,0.00533257]
[1645985356182,0.1093,2748.7,2747.4,0.00533257]
[1645985356368,2.03477404,2748.8,2747.3,11.32603257]
[1645985356567,1.1412,2748.8,2747.3,12.32603257]
[1645985356769,1.1412,2748.8,2747.8,1.31544154]
[1645985356976,0.1093,2748.8,2747.9,11.87565257]
[1645985357173,1.00287404,2749.1,2747.9,11.87565257]
[1645985357573,0.89357404,2749.1,2747.9,11.87565257]
[1645985357777,0.89357404,2749.1,2747.9,0.91032]
[1645985357974,0.89357404,2749.1,2747.7,0.438]
[1645985357975,1.35062067,2748.7,2747.7,0.438]
[1645985358176,0.3607,2748.6,2747.7,0.438]
[1645985358380,0.3607,2748.6,2747.3,0.27995101]
[1645985358576,1.25427404,2748.6,2746.9,2.65431]
[1645985358778,1.25427404,2748.6,2747.1,11.01]
[1645985359175,1.25427404,2748.6,2747.0,1.82102]
[1645985359176,1.10632228,2748.0,2747.0,1.82102]
[1645985359478,1.10632228,2748.0,2747.0,2.12102]
[1645985360326,1.06531178,2748.0,2747.0,2.12102]
[1645985360523,1.06531178,2748.0,2747.3,0.00580796]
[1645985361327,0.07693803,2747.9,2747.3,0.00580796]
[1645985361624,0.07693803,2747.9,2747.0,1.82102]
[1645985361824,0.07693803,2747.9,2747.3,0.00580818]
[1645985362624,0.07693803,2747.8,2747.0,2.12102]
[1645985362833,0.07693803,2747.7,2747.0,1.82102]
[1645985363025,0.1093,2748.4,2747.0,1.82102]
[1645985363026,0.07693803,2747.6,2747.3,0.0058081]
[1645985363224,0.07693803,2747.5,2747.3,0.0058081]
[1645985363424,0.07693803,2747.4,2747.3,0.0058081]
[1645985363860,0.07693803,2747.8,2747.0,1.82102]
[1645985364057,0.07693803,2747.7,2747.2,0.00580784]
[1645985364258,0.07693803,2747.6,2747.2,0.00580784]
[1645985364457,0.07693803,2747.5,2747.2,0.00580784]
[1645985364658,0.75206147,2747.8,2747.2,0.00580784]
[1645985364859,0.07693803,2747.7,2747.2,0.00580784]
[1645985365063,0.07693803,2747.6,2747.0,2.12102]
[1645985365260,0.07693803,2747.5,2747.0,2.12102]
[1645985365464,0.07693803,2747.4,2747.3,0.00581056]
[1645985366066,0.75206147,2747.9,2747.3,0.00581056]
[1645985366264,0.75206147,2747.9,2747.0,2.12102]
[1645985366567,0.75206147,2747.9,2747.3,1.21720559]
[1645985366768,0.07693803,2747.8,2747.3,1.21720559]
[1645985366963,0.07693803,2747.7,2747.3,1.21720559]
[1645985367164,0.07693803,2747.6,2747.3,1.21720559]
[1645985367413,0.07693803,2747.5,2747.3,1.21720559]
[1645985367612,0.07693803,2747.4,2747.3,1.21720559]
[1645985367813,0.67512344,2747.9,2747.3,1.22301615]
[1645985368017,0.07693803,2747.8,2747.3,1.22301615]
[1645985368214,0.07693803,2747.7,2747.3,1.22301615]
[1645985368612,0.07693803,2747.6,2747.3,1.21720559]
[1645985368813,0.07693803,2747.5,2747.3,1.21720559]
[1645985369014,0.67512344,2747.9,2747.3,1.22252592]
[1645985369216,0.07693803,2747.8,2747.3,1.22252592]
[1645985369419,0.07693803,2747.7,2747.3,1.22252592]
[1645985369619,0.07693803,2747.6,2747.3,12.23252592]
[1645985369821,0.1093,2748.3,2747.3,12.23252592]
[1645985369822,3.803e-05,2747.5,2747.4,11.01]
[1645985370020,0.67512344,2748.2,2747.4,11.448]
[1645985370225,0.67512344,2748.2,2747.7,11.31]
[1645985370419,0.63411294,2748.2,2747.7,11.31]
[1645985370623,0.89357404,2748.5,2747.7,12.31]
[1645985370820,0.89357404,2748.5,2747.9,1.10660705]
[1645985371021,0.89357404,2748.5,2747.7,12.31]
[1645985371475,0.89357404,2748.6,2747.7,12.31]
[1645985371673,0.89357404,2748.6,2747.9,0.91032]
[1645985371882,0.89357404,2748.7,2747.9,11.92032]
[1645985372073,1.45845241,2749.0,2748.0,0.3]
[1645985372074,0.89357404,2748.8,2748.0,0.3]
[1645985372373,0.89357404,2748.8,2748.2,11.01]
[1645985372772,0.89357404,2748.9,2748.2,11.01]
[1645985373178,0.89357404,2748.9,2748.1,2.25826]
[1645985373374,0.89357404,2748.7,2748.2,0.91012]
[1645985373572,0.89357404,2748.7,2748.2,1.82025]
[1645985373977,0.89357404,2748.8,2748.2,1.82025]
[1645985374273,1.34934905,2749.0,2748.2,1.82025]
[1645985374274,0.89357404,2748.7,2748.2,1.82025]
[1645985374674,0.89357404,2748.7,2748.2,0.99025]
[1645985374926,0.89357404,2748.8,2748.2,0.99025]
[1645985375133,0.89357404,2748.9,2748.4,11.01]
[1645985375333,0.00580824,2749.0,2748.4,11.448]
[1645985375334,0.89938228,2749.0,2748.4,11.448]
[1645985375535,0.00580824,2749.0,2748.4,12.748]
[1645985375932,0.89357404,2749.2,2748.6,11.92006]
[1645985376131,0.89357404,2749.2,2748.6,13.54928732]
[1645985376334,0.00580861,2749.0,2748.6,13.22006]
[1645985376533,0.00580861,2749.0,2748.6,2.21006]
[1645985376733,0.00580861,2749.0,2748.6,1.21006]
[1645985376935,0.00580861,2749.0,2748.7,0.525]
[1645985377141,0.89357404,2749.4,2748.7,0.59850879]
[1645985377340,0.89357404,2749.4,2748.8,0.90986]
[1645985377542,0.00580875,2749.0,2748.9,11.535]
[1645985377942,0.00580875,2749.0,2748.9,12.535]
[1645985378348,0.89357404,2749.5,2749.0,9.36946924]
[1645985378540,0.02323182,2749.5,2749.2,9.36946924]
[1645985378758,0.02323182,2749.5,2749.2,11.19446924]
[1645985379163,0.02323182,2749.5,2749.2,1.825]
[1645985379365,0.91680586,2749.5,2749.2,0.825]
[1645985379566,0.89357404,2749.5,2749.2,0.825]
[1645985379963,0.00580857,2749.5,2749.2,0.825]
[1645985380567,0.00580857,2749.5,2749.2,0.86596598]
[1645985380767,0.89357404,2749.7,2749.2,0.86596598]
[1645985380973,1.34354066,2750.0,2749.2,0.86596598]
[1645985380974,0.00580857,2749.5,2749.2,0.86596598]
[1645985381971,0.89357404,2749.7,2749.2,0.86596598]
[1645985382170,0.00561865,2749.5,2749.2,0.86596598]
[1645985383016,0.00561865,2749.5,2749.3,11.01]
[1645985383219,0.89357404,2749.7,2749.3,11.01]
[1645985383419,0.00561865,2749.5,2749.2,11.35096598]
[1645985384019,0.00561865,2749.5,2749.2,0.34096598]
[1645985384222,0.00561865,2749.5,2749.2,0.04096598]
[1645985384422,0.89357404,2749.7,2749.2,0.04096598]
[1645985384622,0.00561865,2749.5,2749.2,11.05096598]
[1645985384823,0.00561865,2749.5,2749.2,11.35096598]
[1645985385420,0.00561865,2749.5,2749.2,12.43556287]
[1645985385622,0.89357404,2749.7,2749.3,11.01]
[1645985385824,0.00580857,2749.5,2749.3,11.01]
[1645985386272,0.00580857,2749.5,2749.3,8.5492579]
[1645985386669,0.89357404,2749.7,2749.3,8.5492579]
[1645985387067,0.00580853,2749.5,2749.3,8.5492579]
[1645985387478,0.00580853,2749.5,2749.2,0.04096598]
[1645985387777,0.89357404,2749.3,2749.2,0.04096598]
[1645985388373,0.1093,2749.5,2749.2,0.04096598]
[1645985388374,2.19058798,2749.4,2749.2,0.04096598]
[1645985389176,3.8607,2749.3,2749.2,0.04096598]
[1645985389375,3.8607,2749.3,2748.5,0.25]
[1645985389577,0.89992736,2749.1,2747.9,0.91032]
[1645985389776,0.89992736,2749.1,2747.9,4.41032]
[1645985390431,0.89992736,2749.1,2748.0,0.3]
[1645985390629,1.14371882,2748.7,2748.0,0.3]
[1645985391230,0.00580831,2749.0,2747.9,12.92032]
[1645985391437,0.00580831,2749.0,2747.8,1.82056]
[1645985391630,0.1093,2749.1,2747.8,5.62056]
[1645985391830,0.00580809,2749.0,2747.8,5.62056]
[1645985392031,0.00580809,2749.0,2747.8,2.12056]
[1645985392231,1.14617261,2748.6,2747.8,2.12056]
[1645985392630,3.5,2748.9,2747.8,2.12056]
[1645985392831,2.04361728,2748.9,2747.8,2.12056]
[1645985393035,1.99361728,2748.9,2747.8,2.12056]
[1645985393677,3.8607,2748.9,2747.8,2.12056]
[1645985393879,0.3607,2748.9,2747.8,2.12056]
[1645985394479,0.3607,2748.9,2747.9,11.01]
[1645985394681,0.1093,2748.9,2747.9,11.01]
[1645985394881,1.36240287,2748.8,2747.8,2.12056]
[1645985395885,1.36240287,2748.8,2747.8,13.13056]
[1645985396084,1.36240287,2748.8,2747.9,3.5]
[1645985396486,0.47,2749.2,2747.9,3.5]
[1645985396689,0.00580802,2749.0,2747.9,3.5]
[1645985396888,0.00580802,2749.0,2748.1,11.92015]
[1645985397093,0.00580802,2749.0,2748.3,11.01]
[1645985397424,0.00580802,2749.0,2748.5,11.01]
[1645985397618,1.22534279,2749.4,2748.5,12.05982421]
[1645985397817,1.22534279,2749.4,2748.5,12.01]
[1645985397818,0.00580853,2749.0,2748.5,12.01]
[1645985398019,0.00580853,2749.0,2748.5,11.31]
[1645985398416,0.00580853,2749.0,2748.6,11.01]
[1645985398817,1.34354066,2749.4,2748.6,12.07433117]
[1645985399018,0.00580868,2749.0,2748.6,12.07433117]
[1645985399418,1.32258112,2749.5,2748.7,32.51]
[1645985399720,0.9011778,2749.3,2748.8,0.91008]
[1645985400821,0.9011778,2749.4,2748.8,0.91008]
[1645985401470,0.9011778,2749.4,2748.9,0.00181291]
[1645985401471,1.2618778,2749.4,2748.9,0.00181291]
[1645985401876,0.9011778,2749.2,2748.9,0.00098922]
[1645985402470,0.9011778,2749.2,2748.5,3.5]
[1645985402672,0.9011778,2749.2,2748.6,11.01]
[1645985402871,0.9011778,2749.2,2748.5,4.92814598]
[1645985402872,0.9011778,2749.3,2748.7,0.91012]
[1645985404076,0.9011778,2749.3,2748.5,3.5]
[1645985404274,0.0039961,2749.5,2748.5,3.5]
[1645985404275,0.3607,2749.1,2748.5,3.5]
[1645985404482,1.3711778,2749.1,2748.5,3.5]
[1645985404675,0.3607,2748.9,2748.5,3.5]
[1645985404916,0.3107,2748.7,2747.9,4.66039]
[1645985405113,0.3107,2748.7,2748.2,0.02195232]
[1645985405915,0.3107,2748.7,2747.9,4.41039]
[1645985406314,0.3107,2748.7,2748.3,0.00548743]
[1645985406815,1.2118778,2748.7,2748.3,0.00548743]
[1645985407020,0.1093,2748.6,2748.3,0.00548743]
[1645985407217,0.3107,2748.5,2747.5,0.06621703]
[1645985407417,1.38848152,2747.9,2747.7,3.5]
[1645985407615,1.2118778,2748.5,2747.7,3.5]
[1645985407817,6.2118778,2748.5,2747.7,3.5]
[1645985408019,0.3107,2748.3,2747.2,0.25]
[1645985408218,0.3107,2748.1,2746.4,3.1373]
[1645985408419,0.3107,2748.1,2746.5,1.53858676]
[1645985408420,0.1093,2748.0,2746.5,1.53858676]
[1645985408663,0.3107,2748.1,2748.0,0.00548766]
[1645985408965,1.74288091,2748.1,2748.0,0.00548766]
[1645985409471,1.85218091,2748.1,2748.0,0.00548766]
[1645985409674,1.85218091,2748.1,2746.5,4.41085]
[1645985409871,0.1093,2748.0,2747.9,0.00544888]
[1645985410370,0.28938108,2748.0,2747.9,0.00544888]
[1645985410570,1.50125888,2748.0,2747.9,0.00544888]
[1645985410768,1.50125888,2748.0,2746.8,1.3153115]
[1645985410969,1.50125888,2748.0,2746.5,0.25]
[1645985411270,1.50125888,2748.0,2747.8,0.00544894]
[1645985411675,1.50125888,2748.0,2746.0,2.43681]
[1645985411676,21.5,2747.7,2744.6,2.25121908]
[1645985411878,0.23890531,2744.8,2744.1,2.24162544]
[1645985412179,0.23890531,2744.8,2742.9,2.54361402]
[1645985412180,3.34195699,2743.5,2742.9,2.54361402]
[1645985412436,3.34195699,2743.5,2742.4,0.25]
[1645985412437,6.28043712,2742.9,2742.4,0.25]
[1645985412633,3.5,2742.8,2742.5,1.19479388]
[1645985412832,9.62239411,2742.8,2741.5,0.1]
[1645985413034,10.81627569,2742.7,2741.5,0.1]
[1645985413232,1.0,2742.4,2741.5,0.1]
[1645985413433,1.0,2742.4,2742.1,0.02181329]
[1645985413636,9.62239411,2742.3,2742.1,0.02181329]
[1645985414035,9.62239411,2742.2,2742.1,0.02181329]
[1645985414434,9.62239411,2742.2,2741.6,0.1458]
[1645985414636,9.62239411,2742.2,2741.5,0.1]
[1645985414637,9.62239411,2742.2,2742.1,0.00515201]
[1645985414839,9.62239411,2742.2,2741.5,0.1]
[1645985414840,9.6172421,2742.1,2741.7,0.02061114]
[1645985415036,9.6172421,2742.2,2741.7,0.02061114]
[1645985415235,0.525,2742.7,2741.7,0.02061114]
[1645985415236,9.6172421,2742.0,2741.7,0.02061114]
[1645985415534,0.525,2742.7,2741.9,1.37652671]
[1645985415535,9.6172421,2742.6,2741.9,1.37652671]
[1645985415735,8.24071539,2741.9,2741.7,1.27277039]
[1645985415937,8.24071539,2742.5,2741.8,0.00096]
[1645985416171,8.24071539,2741.8,2741.7,1.57277039]
[1645985416372,8.24071539,2742.4,2741.7,1.52373039]
[1645985416672,1.525,2742.7,2741.7,1.52373039]
[1645985416875,7.47141,2743.5,2741.7,1.52373039]
[1645985416876,8.240717,2742.3,2741.7,1.52373039]
[1645985417078,1.0,2743.4,2741.9,11.01]
[1645985417283,11.3165,2744.1,2741.9,11.01]
[1645985417284,3.6458,2744.1,2742.8,11.01]
[1645985417480,6.2229,2745.0,2742.8,11.01]
[1645985417481,3.5,2744.0,2742.9,0.1458]
[1645985417675,0.15460732,2744.1,2742.9,1.08854389]
[1645985417874,1.8240289,2744.7,2742.6,2.9155]
[1645985417875,0.1457,2744.0,2742.6,2.9155]
[1645985418074,0.9122,2744.2,2742.6,2.9155]
[1645985418075,3.6458,2744.1,2742.6,2.9155]
[1645985418275,0.9122,2743.8,2742.5,0.25]
[1645985418476,4.1708,2743.7,2741.9,0.1458]
[1645985418876,0.9124108,2743.2,2741.9,0.1458]
[1645985419077,3.5,2743.1,2741.9,0.1458]
[1645985419479,3.5,2743.1,2741.6,0.25]
[1645985419480,0.91252,2742.9,2742.3,0.02184148]
[1645985419682,4.41267,2742.8,2742.3,0.02184148]
[1645985419916,5.01266,2742.8,2742.3,4.148e-05]
[1645985420125,6.01266,2742.8,2742.3,4.148e-05]
[1645985420322,0.1458,2742.7,2742.3,4.148e-05]
[1645985420522,0.1458,2742.7,2741.7,0.00096]
[1645985421323,4.0,2742.6,2741.7,1.42651896]
[1645985421525,0.1458,2742.5,2741.7,1.42651896]
[1645985421726,0.3,2742.9,2741.7,1.42651896]
[1645985421727,0.1458,2742.6,2741.7,1.42651896]
[1645985421925,0.1458,2742.8,2741.7,1.42651896]
[1645985422527,1.3583617,2742.8,2741.5,0.1]
[1645985422734,0.3,2742.6,2741.5,0.1]
[1645985422932,0.1458,2742.5,2741.5,0.1]
[1645985423128,3.6458,2742.5,2741.5,0.1]
[1645985423329,4.6458,2742.5,2741.5,0.1]
[1645985423803,3.6458,2742.5,2741.5,0.1]
[1645985424206,0.00581427,2742.4,2741.9,0.00581549]
[1645985425207,4.6458,2742.9,2741.6,0.00096]
[1645985425607,0.00581449,2742.4,2742.0,0.00581539]
[1645985426509,2.46684451,2743.1,2742.3,1.31038031]
[1645985426706,0.00581456,2742.4,2742.3,1.31038031]
[1645985427525,4.55814,2743.6,2742.3,1.31038031]
[1645985427723,4.55814,2743.6,2741.6,1.16225]
[1645985427724,4.55814,2743.6,2742.8,1.18412984]
[1645985427928,0.00581468,2742.5,2742.2,0.00581539]
[1645985428324,0.00581468,2742.5,2742.0,0.48081539]
[1645985428725,3.5,2743.6,2742.0,0.48081539]
[1645985429025,5.62607748,2743.8,2742.1,1.12542887]
[1645985429026,7.30141058,2743.8,2742.1,1.12542887]
[1645985429224,7.30141058,2743.8,2742.2,0.52596]
[1645985429427,0.1458,2743.7,2742.3,0.00096]
[1645985429629,0.1458,2743.7,2742.4,0.525]
[1645985429831,0.1458,2744.0,2742.5,0.00096]
[1645985430037,0.1458,2744.3,2742.6,12.44691]
[1645985430243,0.1458,2744.5,2742.7,0.00096]
[1645985430439,8.6477,2744.7,2743.0,11.01]
[1645985430632,7.61311674,2744.7,2743.1,0.52596]
[1645985430832,3.5,2744.6,2743.2,0.00096]
[1645985431171,7.61311674,2744.7,2743.3,0.6027596]
[1645985431364,3.70971674,2744.7,2743.4,0.00096]
[1645985431568,3.70971674,2744.7,2743.5,0.525]
[1645985431771,2.46541674,2744.7,2744.2,1.27257796]
[1645985431975,3.68008108,2745.1,2744.2,1.27257796]
[1645985431976,2.46541674,2745.1,2744.2,1.27257796]
[1645985432174,2.46541674,2745.1,2744.3,11.01]
[1645985432373,2.46541674,2745.1,2744.3,9.36790083]
[1645985432775,0.0058132,2744.8,2744.3,9.36790083]
[1645985432975,0.0058132,2744.8,2744.3,9.36694083]
[1645985433575,3.8413,2745.4,2744.3,9.36694083]
[1645985433777,3.8413,2745.4,2744.4,0.00096]
[1645985433983,0.00581327,2744.7,2744.4,0.00096]
[1645985434180,0.00581327,2744.7,2744.5,9.36694083]
[1645985434918,0.109,2745.9,2744.5,9.89194083]
[1645985435124,0.00581324,2744.7,2744.6,0.00096]
[1645985435327,0.00581324,2744.7,2744.5,9.89194083]
[1645985435328,0.00581324,2744.7,2744.5,9.36694083]
[1645985435525,0.00581324,2744.7,2744.5,9.80494083]
[1645985436425,0.00581324,2744.7,2744.5,0.438]
[1645985436723,0.00581324,2744.7,2744.5,11.448]
[1645985437123,0.00581324,2744.7,2744.5,0.438]
[1645985437324,0.12129993,2746.0,2744.5,0.438]
[1645985437524,0.00581324,2744.7,2744.6,0.00096]
[1645985437725,0.00581324,2744.7,2744.6,0.438]
[1645985438526,0.12129993,2746.0,2744.7,11.01]
[1645985438772,0.0058132,2744.8,2744.7,0.43896]
[1645985438971,0.0058132,2744.8,2744.7,0.438]
[1645985439173,1.32e-05,2744.8,2744.7,0.438]
[1645985439375,1.32e-05,2744.8,2744.7,0.90898446]
[1645985439572,3.6457,2746.5,2744.7,17.225]
[1645985439779,0.1456,2746.6,2745.3,11.01]
[1645985440181,0.1456,2746.6,2745.4,0.438]
[1645985440385,0.3607,2746.4,2744.8,0.00096]
[1645985440583,16.72546395,2746.5,2744.6,11.01096]
[1645985440584,0.3607,2746.2,2744.6,11.01096]
[1645985440786,4.0063,2746.1,2744.6,12.01]
[1645985440979,4.0063,2746.1,2744.8,11.01]
[1645985441179,0.00581259,2745.7,2745.4,1.28451252]
[1645985441379,0.00581259,2745.7,2744.4,0.25]
[1645985441380,0.00581259,2745.7,2745.1,11.448]
[1645985441582,0.00581259,2745.7,2745.1,0.438]
[1645985441980,0.1456,2746.2,2745.1,0.438]
[1645985442180,0.5063,2746.2,2745.1,0.438]
[1645985442414,0.00581272,2745.5,2745.2,1.23045508]
[1645985442613,0.00581272,2745.5,2745.2,1.66845508]
[1645985442914,0.00581272,2745.5,2745.2,12.67845508]
[1645985443420,0.00581275,2745.5,2745.2,1.66845508]
[1645985444422,0.16776955,2746.5,2745.2,1.23045508]
[1645985444423,3.5,2746.3,2745.2,1.23045508]
[1645985444623,9.57615132,2747.1,2745.2,1.23045508]
[1645985444624,3.5,2746.6,2745.2,1.23045508]
[1645985444821,0.00581275,2745.5,2745.2,1.23045508]
[1645985445722,0.3607,2746.1,2745.2,1.23045508]
[1645985445926,0.00581275,2745.5,2745.2,1.23045508]
[1645985446767,16.70939542,2746.9,2745.2,1.23045508]
[1645985446768,0.3607,2746.3,2745.2,1.23045508]
[1645985447269,0.00581275,2745.5,2745.2,1.23045508]
[1645985448170,0.3607,2746.2,2745.2,1.23045508]
[1645985448369,0.00581275,2745.5,2745.2,1.23045508]
[1645985449270,0.3607,2746.2,2745.7,1.17159806]
[1645985449470,1.37895467,2746.1,2745.7,1.17159806]
[1645985449673,1.37895467,2746.0,2745.7,1.17159806]
[1645985449920,0.3607,2746.2,2745.7,1.17159806]
[1645985450121,1.37884859,2746.1,2745.7,1.17159806]
[1645985450620,1.38427689,2746.1,2745.7,1.17159806]
[1645985450923,1.37884859,2746.0,2745.7,1.17159806]
[1645985451123,1.37884859,2745.9,2745.7,1.17159806]
[1645985451319,0.0054283,2746.1,2745.7,1.17159806]
[1645985451520,1.38180228,2746.0,2745.7,1.17159806]
[1645985451919,1.38723068,2745.9,2745.7,1.17159806]
[1645985452120,0.0054284,2745.9,2745.7,1.17159806]
[1645985452321,0.0054284,2745.9,2745.2,2.63806832]
[1645985452621,1.35441642,2745.8,2745.2,2.63806832]
[1645985452820,1.35441642,2745.8,2745.3,1.04096359]
[1645985453019,3.6456,2746.2,2745.3,12.05096359]
[1645985453219,0.65887132,2746.4,2745.3,12.05096359]
[1645985453220,0.00542856,2745.7,2745.3,12.05096359]
[1645985454066,0.65887132,2746.4,2746.1,1.18701803]
[1645985454271,0.00545413,2745.6,2745.3,11.26]
[1645985454468,0.00545413,2745.6,2745.3,11.01]
[1645985455272,1.5139275,2746.0,2745.5,11.01]
[1645985455473,0.00545416,2745.6,2745.4,1.03722647]
[1645985455876,1.35851285,2745.5,2745.4,1.03722647]
[1645985456677,0.00545416,2745.6,2745.4,1.03722647]
[1645985456889,1.35851285,2745.5,2745.4,1.03722647]
[1645985457078,0.00545416,2745.6,2745.4,1.03722647]
[1645985457729,1.5139275,2746.0,2745.4,1.03722647]
[1645985457928,0.00545244,2745.6,2745.4,1.03722647]
[1645985458933,1.5139275,2746.0,2745.4,1.03722647]
[1645985459132,0.00545244,2745.6,2745.4,1.03722647]
[1645985460036,1.5139275,2746.0,2745.4,1.03722647]
[1645985460237,0.00545244,2745.6,2745.4,1.03722647]
[1645985461276,1.5139275,2746.0,2745.4,12.04722647]
[1645985461476,1.35954149,2745.9,2745.4,12.04722647]
[1645985461675,0.00545255,2745.6,2745.4,1.03722647]
[1645985462072,0.00545255,2745.6,2745.4,12.04722647]
[1645985462473,1.5139275,2746.0,2745.4,12.04722647]
[1645985462675,0.00545255,2745.6,2745.4,12.04722647]
[1645985463074,0.00545255,2745.6,2745.4,12.78522647]
[1645985463679,1.5139275,2746.0,2745.4,13.78522647]
[1645985464080,0.00545255,2745.6,2745.4,13.78522647]
[1645985464947,1.5139275,2746.0,2745.4,13.78522647]
[1645985465152,0.00545657,2745.6,2745.4,13.78522647]
[1645985465952,5.657e-05,2745.6,2745.5,11.01]
[1645985466251,1.5139275,2746.0,2745.5,12.448]
[1645985466453,0.00545657,2745.6,2745.5,12.448]
[1645985467254,1.5139275,2746.0,2745.5,12.448]
[1645985467455,1.32035159,2745.9,2745.5,12.448]
[1645985468254,1.5139275,2746.0,2745.5,12.448]
[1645985469273,1.5139275,2746.0,2745.6,11.01]
[1645985469474,1.8746275,2746.0,2745.5,0.438]
[1645985469672,1.8746275,2746.0,2744.9,20.52413283]
[1645985469673,0.3607,2745.7,2744.9,20.52413283]
[1645985469872,2.17279882,2746.0,2744.9,20.52413283]
[1645985469873,0.61822538,2745.4,2744.9,20.52413283]
[1645985470076,0.61822538,2745.4,2744.4,2.8363]
[1645985470077,3.48,2745.3,2744.4,2.85956248]
[1645985470274,3.5,2745.3,2744.4,2.85956248]
[1645985470581,3.8607,2745.3,2744.4,2.85956248]
[1645985470774,0.3607,2744.9,2744.4,2.85956248]
[1645985470974,0.3607,2744.9,2744.0,0.00096]
[1645985471174,3.5,2745.0,2744.4,0.02326821]
[1645985471374,1.01957132,2745.1,2744.4,1.04544555]
[1645985471573,0.1457,2745.0,2744.4,1.04544555]
[1645985471879,3.6457,2745.0,2744.4,0.02326821]
[1645985472074,4.30457132,2745.0,2744.0,0.00096]
[1645985472274,0.3607,2744.9,2743.9,1.42129466]
[1645985472525,3.6457,2744.8,2744.2,0.02326886]
[1645985472727,4.0064,2744.8,2744.2,1.31513985]
[1645985473127,4.0064,2744.8,2744.2,0.02326886]
[1645985473327,4.0064,2744.8,2743.5,0.4204]
[1645985473328,0.65887132,2744.7,2743.5,0.4204]
[1645985473629,3.5,2744.6,2744.0,0.02326938]
[1645985473826,1.01957132,2744.7,2744.0,0.02326938]
[1645985474226,3.5,2744.6,2744.1,1.0495512]
[1645985474432,0.65887132,2744.6,2743.6,0.3]
[1645985474729,0.65887132,2744.4,2743.8,0.02326976]
[1645985474932,1.01957132,2744.2,2743.8,0.02326976]
[1645985475128,3.5,2744.3,2743.8,0.02326976]
[1645985475129,4.51957132,2744.1,2743.8,0.02326976]
[1645985475530,1.01957132,2743.9,2743.8,0.02326976]
[1645985475731,0.67583057,2743.9,2743.5,0.42136]
[1645985475931,0.67583057,2744.2,2743.5,0.4204]
[1645985476186,3.5,2744.3,2743.5,0.42621739]
[1645985476187,0.67583057,2744.3,2743.5,0.42621739]
[1645985476673,0.67583057,2744.2,2743.5,0.42621739]
[1645985476877,3.5,2744.6,2743.6,0.00096]
[1645985476878,0.67583057,2744.4,2743.6,0.00096]
[1645985477078,0.67583057,2744.4,2743.7,11.01]
[1645985477273,0.67583057,2744.4,2743.7,11.31]
[1645985477475,0.67583057,2744.4,2743.7,11.31096]
[1645985477673,0.88093482,2744.7,2743.7,11.31096]
[1645985477674,0.67583057,2744.5,2743.7,11.31096]
[1645985477874,0.67583057,2744.5,2743.8,0.00096]
[1645985478073,0.67583057,2744.5,2743.8,11.01096]
[1645985478879,0.67583057,2744.5,2744.2,1.4205732]
[1645985479075,0.3607,2744.9,2744.2,1.4205732]
[1645985479076,0.67583057,2744.6,2744.2,1.4205732]
[1645985479778,0.67583057,2744.7,2744.2,1.4205732]
[1645985480034,1.03653057,2744.7,2744.2,1.4205732]
[1645985480232,0.67583057,2744.7,2744.2,1.4205732]
[1645985480436,0.67583057,2744.7,2744.2,12.7305732]
[1645985480634,0.67583057,2744.8,2744.2,12.7305732]
[1645985480833,0.67583057,2744.9,2744.4,11.01]
[1645985481032,0.88093482,2745.1,2744.5,10.938]
[1645985481233,0.88093482,2745.2,2744.5,10.938]
[1645985481433,0.88093482,2745.2,2744.5,0.438]
[1645985481833,0.88093482,2745.2,2744.5,0.388]